Workbook

Sheet Таблиця 1
G1: 2015 | H1: року | L1: D:\stat\ | T1: Прокуратура Чернігівської області | X1: 3 місяці
A2: Таблиця 1. Кримінальні провадження, у яких закінчено досудове розслідування (без повторних) | T2: 1 | X2: 6 місяців
D3: рядок | E3: Направлено до суду кримінальних проваджень з обвинувальним актом | G3: Направлено клопотань до суду для звільнення від кримінальної відповідальності | I3: Закрито кримінальних проваджень | T3: 1 | X3: 9 місяців
E4: усього | F4: стосовно якої кількості осіб | G4: усього | H4: стосовно якої кількості осіб | I4: усього | J4: у т.ч. за п.п. 1-3 ч. 1 ст.284 КПК | X4: 12 місяців
A5: а | D5: б | E5: 1 | F5: 2 | G5: 3 | H5: 4 | I5: 5 | J5: 6 | X5: 3
A6: Кримінальні правопорушення, вчинені службовими особами, які займають особливо відповідальне становище відповідно до ч.1 ст. 9 Закону України «Про державну службу» та посади яких відповідно до цього Закону віднесено до 1-2 категорії (крім працівників правоохоронних органів) | D6: 1 | X6: 1
A7: з них: | B7: У сфері службової діяльності | D7: 2 | X7: 1
B8: у т.ч.: | C8: ловживання владою або службовим становищем (ст. 364) | D8: 3
C9: службова недбалість (ст. 367) | D9: 4
C10: злочини щодо хабарництва (ст.ст. 368-370) | D10: 5
C11: нші кримінальні правопорушення, вчинені у сфері службової діяльності | D11: 6
B12: Кримінальні правопорушення, не пов’язані із службовою діяльністю | D12: 7
B13: у т.ч.: | C13: злочини проти життя та здоров’я особи (розділ ІІ КК України) | D13: 8
C14: злочини проти волі, честі та гідності особи (розділ ІІІ КК України) | D14: 9
C15: злочини проти безпеки руху та експлуатації транспорту (ст.ст. 276-292) | D15: 10
C16: інші кримінальні правопорушення, не пов’язані із службовою діяльністю | D16: 11
A17: Кримінальні правопорушення, вчинені особами посади яких згідно зі ст. 25 Закону України «Про державну службу» віднесено до 3 категорії посад (крім працівників правоохоронних органів та суддів) | D17: 12 | E17: 2 | F17: 2
A18: з них: | B18: У сфері службової діяльності | D18: 13 | E18: 2 | F18: 2
B19: у т.ч.: | C19: зловживання владою або службовим становищем (ст. 364) | D19: 14
C20: службова недбалість (ст. 367) | D20: 15 | E20: 1 | F20: 1
C21: злочини щодо хабарництва (ст. ст. 368-370) | D21: 16 | E21: 1 | F21: 1
C22: інші кримінальні правопорушення, вчинені у сфері службової діяльності | D22: 17
B23: Кримінальні правопорушення, не пов’язані із службовою діяльністю | D23: 18
B24: у т.ч.: | C24: злочини проти життя та здоров’я особи (розділ ІІ КК України) | D24: 19
C25: злочини проти волі, честі та гідності особи (розділ ІІІ КК України) | D25: 20
C26: злочини проти безпеки руху та експлуатації транспорту (ст.ст. 276-292) | D26: 21
C27: інші кримінальні правопорушення, не пов’язані із службовою діяльністю | D27: 22
A28: Кримінальні правопорушення, вчинені працівниками правоохоронних органів | D28: 23 | E28: 17 | F28: 20 | I28: 154 | J28: 154
A29: з них: | B29: органів внутрішніх справ | D29: 24 | E29: 11 | F29: 14 | I29: 141 | J29: 141
B30: у т.ч.: | C30: Національної гвардії | D30: 25
B31: органів прокуратури | D31: 26 | I31: 2 | J31: 2
B32: Служби безпеки України | D32: 27 | I32: 1 | J32: 1
B33: Державної податкової служби | D33: 28 | I33: 4 | J33: 4
B34: митної служби | D34: 29
B35: працівниками пенітенціарної системи | D35: 30 | E35: 3 | F35: 3 | I35: 5 | J35: 5
B36: працівниками органів Держфінінспекції | D36: 31 | I36: 1 | J36: 1
B37: працівниками Держрибохорони | D37: 32 | E37: 1 | F37: 1
B38: працівниками державної лісової охорони | D38: 33
B39: співробітниками Військової служби правопорядку у ЗСУ | D39: 34
B40: прикордонниками | D40: 35
B41: працівниками інших органів, що здійснюють правозастосовні або правоохоронні функції | D41: 36 | E41: 2 | F41: 2

Sheet Таб 1
A1: а | D1: б | E1: 1 | F1: 2 | G1: 3 | H1: 4 | I1: 5 | J1: 6
A2: з них: | B2: У сфері службової діяльності | D2: 37 | E2: 7 | F2: 9 | I2: 138 | J2: 138
B3: у т.ч.: | C3: зловживання владою або службовим становищем (ст. 364) | D3: 38 | E3: 1 | F3: 1 | I3: 6 | J3: 6
C4: перевищення влади або службових повноважень (ст. 365) | D4: 39 | I4: 92 | J4: 92
C5: службова недбалість (ст. 367) | D5: 40 | I5: 9 | J5: 9
C6: злочини щодо хабарництва (ст.ст. 368-370) | D6: 41 | E6: 5 | F6: 7 | I6: 11 | J6: 11
C7: інші кримінальні правопорушення, вчинені у сфері службової діяльності | D7: 42 | E7: 1 | F7: 1 | I7: 20 | J7: 20
B8: Кримінальні правопорушення, не пов’язані із службовою діяльністю | D8: 43 | E8: 10 | F8: 11 | I8: 16 | J8: 16
B9: у т.ч.: | C9: злочини проти життя та здоров’я особи (розділ ІІ КК України) | D9: 44 | E9: 4 | F9: 4 | I9: 10 | J9: 10
C10: злочини проти волі, честі та гідності особи (розділ ІІІ КК України) | D10: 45
C11: злочини проти безпеки руху та експлуатації транспорту (ст.ст. 276-292) | D11: 46 | I11: 1 | J11: 1
C12: інші кримінальні правопорушення, не пов’язані із службовою діяльністю | D12: 47 | E12: 6 | F12: 7 | I12: 5 | J12: 5
A13: Кримінальні правопорушення, вчинені суддями | D13: 48
A14: з них: | B14: У сфері здійснення правосуддя | D14: 49
B15: у т.ч.: | C15: постановлення завідомо неправосудного вироку, рішення або ухвали (ст.375) | D15: 50
C16: злочини щодо хабарництва (ст.ст. 368-370) | D16: 51
C17: інші кримінальні правопорушення, вчинені у сфері службової діяльності щодо здійснення правосуддя | D17: 52
B18: Не пов’язані із службовою діяльністю щодо здійснення правосуддя | D18: 53
B19: у т.ч.: | C19: злочини проти життя та здоров’я особи (розділ ІІ КК України) | D19: 54
C20: злочини проти волі, честі та гідності особи (розділ ІІІ КК України) | D20: 55
C21: злочини проти безпеки руху та експлуатації транспорту (ст.ст. 276-292) | D21: 56
C22: інші кримінальні правопорушення, не пов’язані із службовою діяльністю | D22: 57
A23: Інші кримінальні правопорушення | D23: 58 | E23: 4 | F23: 4
A24: УСЬОГО | D24: 59 | E24: 23 | F24: 26 | I24: 154 | J24: 154
A25: з них: | B25: провадження про правопорушення, вчинені ОГ та ЗО | D25: 60 | G25: x | H25: x | J25: x
B26: провадження про корупційні правопорушення | D26: 61 | E26: 10 | F26: 12 | J26: x
B27: провадження про правопорушення, вчинені у сфері земельних правовідносин | D27: 62 | E27: 1 | F27: 1
B28: провадження про правопорушення, вчинені у бюджетній системі | D28: 63 | E28: 3 | F28: 3
A29: Клопотання про застосування примусових заходів медичного характеру (не входить у рядок 59) | D29: 64 | G29: x | H29: x | I29: x | J29: x
A30: Контрольний рядок | D30: 65 | E30: =SUM('Таблиця 1'!E6:E41)+SUM('Таб 1'!E2:E29) -> 115 | F30: =SUM('Таблиця 1'!F6:F41)+SUM('Таб 1'!F2:F29) -> 132 | G30: =SUM('Таблиця 1'!G6:G41)+SUM('Таб 1'!G2:G24)+G26+G27+G28 -> 0 | H30: =SUM('Таблиця 1'!H6:H41)+SUM('Таб 1'!H2:H24)+H26+H27+H28 -> 0 | I30: =SUM('Таблиця 1'!I6:I41)+SUM('Таб 1'!I2:I28) -> 770 | J30: =SUM('Таблиця 1'!J6:J41)+SUM('Таб 1'!J2:J24)+J27+J28 -> 770

Sheet Таб 1.1
A1: Додаток 1 до звітності за формою № 1-СЛ "Про роботу органів досудового розслідування",
A2: Таблиця 1.1. Кримінальні провадження про злочини, вчинені працівниками правоохоронних органів щодо застосування катувань та іншого жорстокого поводження (без повторних)
D3: рядок | E3: Про катування та інше жорстоке поводження з особами | F3: з них: | L3: у т.ч.
F4: ст. 127 КК України | G4: ст. 364 КК України | H4: ст. 365 КК України | I4: ст. 367 КК України | J4: ст. 373 КК України | K4: за іншими статтями | L4: зі смертельними наслідками
A5: a | D5: б | E5: 1 | F5: 2 | G5: 3 | H5: 4 | I5: 5 | J5: 6 | K5: 7 | L5: 8
A6: Розслідувалось кримінальних проваджень | D6: 1 | E6: 17 | H6: 17
A7: у т.ч. стосовно працівників: | B7: МВС | D7: 2 | E7: 17 | H7: 17
B8: з них: | C8: Національної гвардії | D8: 3
B9: ДФС | D9: 4
B10: СБУ | D10: 5
B11: ДПтС | D11: 6
A12: З них: розпочатих у поточному році | D12: 7 | E12: 14 | H12: 14
A13: у т.ч. стосовно працівників: | B13: МВС | D13: 8 | E13: 14 | H13: 14
B14: з них: | C14: Національної гвардії | D14: 9
B15: ДФС | D15: 10
B16: СБУ | D16: 11
B17: ДПтС | D17: 12
A18: Направлено до суду кримінальних проваджень з обвинувальним актом | D18: 13
A19: у т.ч. стосовно працівників: | B19: МВС | D19: 14
B20: з них: | C20: Національної гвардії | D20: 15
B21: ДФС | D21: 16
B22: СБУ | D22: 17
B23: ДПтС | D23: 18
A24: Кількість осіб, стосовно яких кримінальні провадження направлені до суду з обвинувальним актом | D24: 19
A25: у т.ч. стосовно працівників: | B25: МВС | D25: 20
B26: з них: | C26: Національної гвардії | D26: 21
B27: ДФС | D27: 22
B28: СБУ | D28: 23
B29: ДПтС | D29: 24
A30: Направлено до суду клопотань для звільнення підозрюваного від кримінальної відповідальності | D30: 25
A31: Закрито кримінальних проваджень | D31: 26 | E31: 16 | H31: 16
A32: Направлено за підслідністю | D32: 27
A33: Контрольний рядок | D33: 28 | E33: =SUM(E6:E32) -> 78 | F33: =SUM(F6:F32) -> 0 | G33: 0 | H33: 78 | I33: 0 | J33: 0 | K33: 0 | L33: 0

Sheet Таб 2-3
A1: Таблиця 2. Результати розслідування кримінальних правопорушень
F2: рядок
A3: а | F3: б | G3: 1
A4: Залишок незакінчених кримінальних проваджень на початок звітного періоду | F4: 1 | G4: 38
A5: Розпочато проваджень у звітному періоді, у т.ч. по виділених в окреме провадження згідно із ст. 217 КПК | F5: 2 | G5: 310
A6: з них: | B6: відновлено розслідування у раніше зупинених кримінальних провадженнях | F6: 3 | G6: 4
B7: відновлено розслідування у раніше закритих кримінальних провадженнях | F7: 4 | G7: 27
A8: Усього закінчено кримінальних проваджень у звітному періоді | F8: 5 | G8: 245
A9: у т.ч.: | B9: розслідування у яких розпочато у звітному періоді | F9: 6 | G9: 185
A10: з них(з рядка 5) | B10: закінчено кримінальних проваджень у строки понад 2 місяці | F10: 7 | G10: 3
B11: Направлено до суду | C11: проваджень з обвинувальним актом | F11: 8 | G11: 26
C12: у т.ч.: | D12: з угодою про примирення | F12: 9
D13: з угодою про визнання винуватості | F13: 10 | G13: 2
C14: клопотань про застосування примусових заходів медичного характеру | F14: 11
C15: клопотань про звільнення підозрюваного від кримінальної відповідальності | F15: 12
B16: закрито кримінальних проваджень із числа закінчених | F16: 13 | G16: 219
B17: з них: | C17: закрито прокурором | F17: 14
A18: Направлено кримінальних проваджень за підслідністю | F18: 15 | G18: 8
A19: Приєднано кримінальних проваджень до інших проваджень | F19: 16 | G19: 34
A20: Зупинено кримінальних проваджень | F20: 17 | G20: 7
A21: з них: | B21: за п.1 ст. 280 КПК України у зв’язку з хворобою підозрюваного | F21: 18 | G21: 4
B22: за п.2 ст. 280 КПК України у зв’язку з невстановленням місцезнаходження підозрюваного | F22: 19 | G22: 3
B23: за п.3 ст. 280 КПК України для виконання процесуальних дій у межах міжнародного співробітництва | F23: 20
A24: Залишок незакінчених кримінальних проваджень | F24: 21 | G24: 54
A25: з них: | B25: з повідомленням особи про підозру у вчиненні кримінального правопорушення | F25: 22 | G25: 4
A26: Із залишку незакінчених кримінальних проваджень, за якими особу повідомлено про підозру у вчиненні кримінального правопорушення, зі строком розслідування (ряд.22) | E26: понад 2 місяці, але не більше 6 місяців | F26: 23
E27: понад 6 місяців, але не більше 1 року | F27: 24
A28: Число осіб, які тримаються під вартою за незакінченими кримінальними провадженнями | F28: 25 | G28: 1
A29: у т.ч. зі строком: | C29: понад шістдесят днів, але не більше 6 місяців | F29: 26
C30: понад 6 місяців, але не більше 1 року | F30: 27
A31: Число слідчих (станом на 01.01) | F31: 28 | G31: 5
A32: Контрольний рядок | F32: 29 | G32: =SUM(G4:G31) -> 1179
A33: Таблиця 3. Строки досудового розслідування
F34: рядок | G34: Закінчено кримінальних проваджень (без повторно закінчених)
A35: а | F35: б | G35: 1
A36: У С Ь О Г О | F36: 1 | G36: 177
A37: у т.ч.: | B37: понад 2 місяці з дня повідомлення особи про підозру | F37: 2 | G37: 3
A38: Закінчено у строк (з рядка 2) | C38: до 3 місяців | F38: 3 | G38: 2
C39: від 3 до 6 місяців | F39: 4 | G39: 1
C40: від 6 місяців до 1 року | F40: 5
A41: Контрольний рядок | F41: 6 | G41: =SUM(G36:G40) -> 183

Sheet Таб 4-6
A1: Таблиця 4. Підстави закриття кримінальних проваджень (без повторно закритих) | G1: Таблиця 6. Зупинені кримінальні провадження (без повторно зупинених)
D2: рядок | J2: рядок
A3: а | D3: б | E3: 1 | G3: а | J3: б | K3: 1
A4: У закритих досудових провадженнях рішення прийнято на підставі: | C4: п. 1 ст. 284 КПК (за відсутністю події кримінального правопорушення) | D4: 1 | E4: 2 | G4: Залишок зупинених кримінальних проваджень на кінець звітного періоду | J4: 1 | K4: 3
C5: п. 2 ст. 284 КПК (за відсутністю складу кримінального правопорушення) | D5: 2 | E5: 152 | G5: у т.ч.: | H5: зупинені вперше в поточному році | J5: 2 | K5: 3
C6: п. 3 ст. 284 КПК (за невстановленням доказів винуватості особи) | D6: 3 | G6: з них: | H6: Зупинено кримінальних проваджень унаслідок захворювання підозрюваного (п.1 ст. 280 КПК) | J6: 3 | K6: 2
C7: п. 4 ст. 284 КПК (законом скасована кримінальна відповідальність) | D7: 4 | H7: у т.ч.: | I7: зупинені вперше в поточному році | J7: 4 | K7: 2
C8: п. 5 ст.284 КПК (у зв’язку зі смертю підозрюваного, обвинуваченого) | D8: 5 | H8: Підозрюваний ухиляється від слідства (п. 2 ст. 280 КПК) | J8: 5 | K8: 1
C9: п. 6 ст. 284 КПК (за наявністю вироку по тому самому обвинуваченню) | D9: 6 | H9: у т.ч.: | I9: зупинені вперше в поточному році | J9: 6 | K9: 1
C10: п. 7 ст. 284 КПК (у разі відмови потерпілого від обвинувачення) | D10: 7 | H10: За необхідності виконання процесуальних дій у межах міжнародного співробітництва (п.3 ст. 280 КПК) | J10: 7
C11: п. 8 ст. 284 КПК (у разі неотримання згоди держави, яка видала особу) | D11: 8 | H11: у т.ч.: | I11: зупинені вперше в поточному році | J11: 8
A12: Направлено до суду клопотань для звільнення підозрюваного, обвинуваченого від кримінальної відповідальності у зв’язку із закінченням строків давності (Дані рядка 9 в табл.1 не включаються) | D12: 9 | G12: Контрольний рядок | J12: 9 | K12: =SUM(K4:K11) -> 12
A14: Контрольний рядок | D14: 10 | E14: =SUM(E4:E12) -> 154
A15: Таблиця 5. Дані про виправданих осіб та осіб, стосовно яких кримінальне провадження закрито (без повторних) за реабілітуючими підставами
D16: рядок
A17: а | D17: б | E17: 1
A18: Кількість підозрюваних осіб, стосовно яких кримінальне провадження закрито прокурором на підставі п.п. 1-3 ч.1 ст. 284 КПК України | D18: 1
A19: з них: | B19: трималися під вартою | D19: 2
B20: перебували під домашнім арештом | D20: 3
A21: Кількість обвинувачених та підозрюваних, стосовно яких провадження закрито за реабілітуючими підставами (за кримінальними справами, розслідуваними до 20.11.2012) | D21: 4
A22: з них: | B22: трималося під вартою | D22: 5
A23: Кількість виправданих і осіб, стосовно яких провадження закриті судом за реабілітуючими підставами | D23: 6 | E23: 2
A24: з них: | B24: трималися під вартою | D24: 7
B25: перебували під домашнім арештом | D25: 8
A26: Кількість виправданих і осіб, стосовно яких справи закриті судом за відсутністю події або складу злочину і за недоведеністю обвинувачення (за кримінальними справами, направленими до суду до 20.11.2012) | D26: 9
A27: з них: | B27: трималося під вартою | D27: 10
A28: Кількість осіб, стосовно яких кримінальні провадження закриті судом у зв’язку з відмовою прокурора від підтримання державного обвинувачення | D28: 11
A29: з них: | B29: трималися під вартою | D29: 12
B30: перебували під домашнім арештом | D30: 13
A31: Кількість осіб, стосовно яких кримінальні справи закриті судом у зв’язку з відмовою прокурора від підтримання державного обвинувачення (за кримінальними справами, направленими до суду до 20.11.2012) | D31: 14
A32: з них: | B32: трималися під вартою | D32: 15
A33: Кількість осіб, яких притягнуто до кримінальної відповідальності, але у зв’язку із зміною законодавства (декриміналізацією) провадження стосовно них закриті на стадії розслідування за відсутністю складу злочину | D33: 16
A34: з них: | B34: трималися під вартою | D34: 17
A35: Кількість осіб, стосовно яких провадження закриті судом у зв’язку із зміною законодавства (декриміналізацією) за відсутністю складу злочину | D35: 18
A36: з них: | B36: трималися під вартою | D36: 19
A37: Контрольний рядок | D37: 20 | E37: =SUM(E18:E36) -> 2

Sheet Таб 7-10
A1: Таблиця 7. Затримання осіб як підозрюваних, обрання запобіжного заходу | K1: Таблиця 9. Забезпечення відшкодування збитків за закінченими кримінальними провадженнями (з обвинувальними актами, клопотаннями до суду про звільнення від кримінальної відповідальності, постановами про закриття провадження на підставі п. 5 ст. 284 КПК України)
H2: рядок | N2: рядок | O2: Установлено збитків на суму (у тис. грн.) | P2: Відшкодовано збитків на суму (у тис. грн.) | Q2: Накладено арешт на майно на суму (у тис. грн.) | R2: У т.ч. вилучено грошей та цінностей (для забезпечення відшкодування збитків) на суму (у тис. грн.) | S2: Сума, на яку пред’явлено позови ( у тис. грн.)
A3: а | H3: б | I3: 1
A4: Затримано осіб у порядку, передбаченому ст.ст. 207, 208 КПК України | H4: 1 | I4: 12 | K4: а | N4: б | O4: 1 | P4: 2 | Q4: 3 | R4: 4 | S4: 5
A5: Усього звільнено осіб | H5: 2 | I5: 1 | K5: УСЬОГО | N5: 1 | O5: 4898 | P5: 133 | Q5: 318 | S5: 104
A6: у т.ч.: | B6: звільнено осіб безпосередньо слідчим (прокурором) без застосування запобіжного заходу у вигляді тримання під вартою | H6: 3 | K6: з них: | L6: інтересам держави та територіальних громад | N6: 2 | O6: 4880 | P6: 130 | Q6: 318 | S6: 104
B7: з них: | C7: за непідтвердженням підозри у вчиненні злочину | H7: 4 | L7: про земельні правовідносини | N7: 3
C8: у зв'язку із закінченням установленого законом строку затримання | H8: 5 | K8: Контрольний рядок | N8: 4 | O8: =SUM(O5:O7) -> 9778 | P8: =SUM(P5:P7) -> 263 | Q8: =SUM(Q5:Q7) -> 636 | R8: =SUM(R5:R7) -> 0 | S8: =SUM(S5:S7) -> 208
C9: у зв’язку із внесенням клопотань слідчими про обрання більш м’яких запобіжних заходів (застави, домашнього арешту тощо) | H9: 6 | K9: Таблиця 10. Повернення справ судом для проведення додаткового розслідування відповідно до пункту 12 Перехідних положень КПК України
B10: у зв’язку з відмовою прокурора підтримати клопотання про застосування запобіжного заходу – тримання під вартою | H10: 7
B11: через відмову суду в обранні запобіжного заходу у вигляді тримання під вартою | H11: 8 | R11: рядок | S11: Всього
B12: з них: у зв’язку з обранням інших запобіжних заходів | D12: домашній арешт | H12: 9 | K12: а | R12: б | S12: 1
D13: застава | H13: 10 | K13: Повернуто справ судом для проведення додаткового розслідування | R13: 1
D14: особиста порука | H14: 11 | K14: з них: | L14: направлено до суду з обвинувальним актом | R14: 2
D15: особисте зобов’язання | H15: 12 | L15: у т. ч. | M15: з угодами про примирення | R15: 3
B16: у зв’язку із скасуванням апеляційним судом постанови суду про тримання під вартою | H16: 13 | M16: з угодами про визнання винуватості | R16: 4
A17: Контрольний рядок | H17: 14 | I17: =SUM(I4:I16) -> 13 | L17: закрито | R17: 5
A18: Таблиця 8. Повернення судом кримінальних проваджень прокурору та результати їх розслідування | L18: у т. ч. | M18: за п. п. 1-3 ст. 284 КПК України | R18: 6
D19: рядок | E19: Повернуто проваджень, у тому числі: | L19: направлено до суду клопотань для звільнення від кримінальної відповідальності | R19: 7
E20: з обвину-вальним актом (п.3 ч. 3 ст. 314 КПК) | F20: з клопотаннями про застосування примусових заходів медичного характеру (п.3 ч. 3 ст. 314 КПК) | G20: з клопотаннями про звільнення особи від кримінальної відповідальності (п. 4 ст. 288 КПК) | H20: проваджень на підставі п. 1 ч. 3 ст. 314, п.2 ч.2 ст. 407 КПК | L20: направлено за підслідністю до інших правоохоронних органів | R20: 8
K21: Контрольний рядок | R21: 9 | S21: =SUM(S13:S20) -> 0
K23: Прокурор | P23: Носенко В.О. | R23: ________________ (підпис)
A24: а | D24: б | E24: 1 | F24: 2 | G24: 3 | H24: 4
A25: Усього надійшло кримінальних проваджень із судів | D25: 1 | E25: 3 | K25: Заступник прокурора області | P25: Сірик Д.C. | R25: ________________ (підпис)
A26: з них: | B26: направлено до суду в звітному періоді без проведення досудового розслідування | D26: 2 | E26: 2
A27: Перебувало кримінальних проваджень у слідчого у звітному періоді | D27: 3 | E27: 1 | K27: Виконавець | P27: Кожедуб Є.М. | R27: ________________ (підпис)
A28: з них (з рядка 3): | B28: направлено кримінальних проваджень до суду з обвинувальним актом | D28: 4 | E28: 1
B29: закрито | D29: 5 | K29: Телефон: __________________ факс: ____________________ електронна пошта: ___________________________
B30: у т.ч.: | C30: за п.п. 1-3 ст. 284 КПК України | D30: 6 | K30: Звіт складено в _____ примірниках
B31: направлено до суду клопотань для звільнення від кримінальної відповідальності | D31: 7 | K31: Прим. №1
B32: направлено до суду клопотань про застосування заходів медичного характеру | D32: 8 | K32: Прим. №2 | Q32: Вих. № ___ “___” ______________200__р.
A33: 3упинено проваджень | D33: 9
A34: Направлено проваджень за підслідністю | D34: 10
A35: Залишок незакінчених кримінальних проваджень | D35: 11
A36: Контрольний рядок | D36: 12 | E36: =SUM(E25:E35) -> 7 | F36: =SUM(F25:F35) -> 0 | G36: =SUM(G25:G35) -> 0 | H36: =SUM(H25:H35) -> 0

Sheet Додаток
I1: Додаток ________
A2: Стан відшкодування збитків за закінченими кримінальними провадженнями
A3: Показник | E3: рядок | F3: Усього | G3: з них:
G4: Фізичним особам | H4: Державним інтересам | I4: Інтересам територіальних громад
A5: а | E5: б | F5: 1 | G5: 2 | H5: 3 | I5: 4
A6: Усього забезпечено відшкодування збитків (рядок 1 графи 2,4 таблиці 9) (тис.грн.) | E6: 1 | F6: 133 | G6: 3 | H6: 130
A7: з них на суму (тис. грн.) | B7: вилучених предметів злочинного посягання | E7: 2
B8: бюджетам усіх рівнів | E8: 3 | F8: 130 | G8: х | H8: 130
A9: з них з рядка 1 повернуто (відшкодовано) | B9: коштів | E9: 4 | F9: 3 | G9: 3
B10: майна та цінностей | E10: 5
B11: землі | D11: га | E11: 6
D12: сума | E12: 7
A13: Залишок невідшкодованих збитків під час досудового розслідування (тис.грн.) (гр.1 - гр.2 - гр.4 - гр. 5) | E13: 8 | F13: 4661 | H13: 4646
A14: у т.ч. | B14: у кримінальних провадженнях про земельні правовідносини | D14: га | E14: 9
D15: сума | E15: 10
A16: з них: | B16: Відшкодовано за прокурорського реагування (тис.грн.) | E16: 11
B17: у т.ч. | C17: пов’язаних із земельними правовідносинами | D17: га | E17: 12
D18: сума | E18: 13
A19: Контрольний рядок | E19: 14 | F19: =SUM(F6:F18) -> 4927 | G19: =SUM(G6:G7,G9:G18) -> 6 | H19: =SUM(H6:H18) -> 4906 | I19: =SUM(I6:I18) -> 0
A20: ='Таб 7-10'!K23 -> Прокурор
E21: Носенко В.О. | H21: ________________ (підпис)
A23: ='Таб 7-10'!K25 -> Заступник прокурора області | E23: Сірик Д.С. | H23: ________________ (підпис)

Sheet Титульний
A2: ЗВІТНІСТЬ
A4: ПРО РОБОТУ
A5: ОРГАНІВ ДОСУДОВОГО РОЗСЛІДУВАННЯ
A7: за 9 місяців 2015 року
A9: Подають: | E9: Терміни подання | F9: Форма №1 СЛ
A10: Слідчі підрозділи прокуратур Автономної Республіки Крим, областей, міст Києва і Севастополя – прокурору Автономної Республіки Крим, області, міст Києва і Севастополя | E10: до 2 числа за звітним періодом | F10: квартальна
A11: Військові прокурори гарнізонів (на правах міських) – військовому прокурору регіону | E11: до 2 числа за звітним періодом | F11: ЗАТВЕРДЖЕНО
A12: Слідче управління Головної військової прокуратури – відповідному заступнику Генерального прокурора України | E12: до 2 числа за звітним періодом | F12: спільний наказ ГП, МВС, СБ, ДПС України від 15 листопада 2012 року № 110/1031/1037/514 зі змінами (у редакції спільного наказу Генеральної прокуратури України, Міністерства внутрішніх справ України, Служби безпеки України та Державної фіскальної служби України від 12 березня № 23/194/233/157) за погодженням з Держстатом
A13: Прокурори Автономної Республіки Крим, областей, міст Києва і Севастополя – Генеральній прокуратурі України | E13: до 3 числа за звітним періодом
A14: Військові прокурори регіонів – Головній військовій прокуратурі Генеральної прокуратури України | E14: до 3 числа за звітним періодом
A15: Структурні підрозділи Генеральної прокуратури України, які здійснюють досудове розслідування – відділу статистичної інформації та аналізу управління організації ведення Єдиного реєстру досудових розслідувань та статистичної інформації Генеральної прокуратури України | E15: до 2 числа за звітним періодом
A16: Головна військова прокуратура Генеральної прокуратури України – відділу статистичної інформації та аналізу управління організації ведення Єдиного реєстру досудових розслідувань та статистичної інформації Генеральної прокуратури України | E16: до 4 числа за звітним періодом
A17: Генеральна прокуратура України – Держстату (півріччя, рік) | E17: на 35 день за звітним періодом (півріччя, рік)
A19: Респондент:
A20: Найменування: | B20: Прокуратура Чернігівської області
A21: Місцезнаходження: | B21: 14000 Чернігів вул.Князя Чорного,9
A23: (поштовий індекс, область, район, населений пункт, вулиця/провулок, площа тошо, № будинку)

Sheet Помилки
D1: Перевірка помилок | N1: Перелік контрольних рівностей
D2: Звіт про роботу органів слідства | K2: Таблиця 1 | L2: В Таблиці 1 число в графі 1 рядку 25 - | P2: ='Таблиця 1'!E30 -> 0
D3: Форма № 1-СЛ | L3: не повинно перевищувати число в рядку 24 - | P3: ='Таблиця 1'!E29 -> 11
A4: Назва: | C4: Прокуратура Чернігівської області | L4: В Таблиці 1 число в графі 2 рядку 25 - | P4: ='Таблиця 1'!F30 -> 0
A5: Період: | B5: 9 місяців | C5: 2015 | L5: не повинно перевищувати число в рядку 24 - | P5: ='Таблиця 1'!F29 -> 14
L6: В Таблиці 1 число в графі 3 рядку 25 - | P6: ='Таблиця 1'!G30 -> 0
L7: не повинно перевищувати число в рядку 24 - | P7: ='Таблиця 1'!G29 -> 0
A8: В таблиці 9 в графі 1 рядку 1 стоїть цифра - 4898 | L8: В Таблиці 1 число в графі 4 рядку 25 - | P8: ='Таблиця 1'!H30 -> 0
A9: за попередній квартал ця цифра була - 7168 | L9: не повинно перевищувати число в рядку 24 - | P9: ='Таблиця 1'!H29 -> 0
L10: В Таблиці 1 число в графі 5 рядку 25 - | P10: ='Таблиця 1'!I30 -> 0
A11: В таблиці 9 в графі 1 рядку 2 стоїть цифра - 4880 | L11: не повинно перевищувати число в рядку 24 - | P11: ='Таблиця 1'!I29 -> 141
A12: за попередній квартал ця цифра була - 7150 | L12: В Таблиці 1 число в графі 6 рядку 25 - | P12: ='Таблиця 1'!J30 -> 0
L13: не повинно перевищувати число в рядку 24 - | P13: ='Таблиця 1'!J29 -> 141
A14: В таблиці 9 в графі 5 рядку 1 стоїть цифра - 104 | L14: В Таблиці 1 число в графі 1 рядку 60 - | P14: ='Таб 1'!E25 -> 0
A15: за попередній квартал ця цифра була - 2400 | L15: не повинно перевищувати число в рядку 59 - | P15: ='Таб 1'!E24 -> 23
L16: В Таблиці 1 число в графі 2 рядку 60 - | P16: ='Таб 1'!F25 -> 0
A17: В таблиці 9 в графі 5 рядку 2 стоїть цифра - 104 | L17: не повинно перевищувати число в рядку 59 - | P17: ='Таб 1'!F24 -> 26
A18: за попередній квартал ця цифра була - 2400 | L18: В Таблиці 1 число в графі 5 рядку 60 - | P18: ='Таб 1'!I25 -> 0
L19: не повинно перевищувати число в рядку 59 - | P19: ='Таб 1'!I24 -> 154
C20: В звіті допущено 4 помилки. | L20: В Таблиці 1 число в графі 1 рядку 61 - | P20: ='Таб 1'!E26 -> 10
L21: не повинно перевищувати число в рядку 59 - | P21: ='Таб 1'!E24 -> 23
L22: В Таблиці 1 число в графі 2 рядку 61 - | P22: ='Таб 1'!F26 -> 12
L23: не повинно перевищувати число в рядку 59 - | P23: ='Таб 1'!F24 -> 26
L24: В Таблиці 1 число в графі 3 рядку 61 - | P24: ='Таб 1'!G26 -> 0
L25: не повинно перевищувати число в рядку 59 - | P25: ='Таб 1'!G24 -> 0
L26: В Таблиці 1 число в графі 4 рядку 61 - | P26: ='Таб 1'!H26 -> 0
L27: не повинно перевищувати число в рядку 59 - | P27: ='Таб 1'!H24 -> 0
L28: В Таблиці 1 число в графі 5 рядку 61 - | P28: ='Таб 1'!I26 -> 0
L29: не повинно перевищувати число в рядку 59 - | P29: ='Таб 1'!I24 -> 154
L30: В Таблиці 1 число в графі 1 рядку 62 - | P30: ='Таб 1'!E27 -> 1
L31: не повинно перевищувати число в рядку 59 - | P31: ='Таб 1'!E24 -> 23
L32: В Таблиці 1 число в графі 2 рядку 62 - | P32: ='Таб 1'!F27 -> 1
L33: не повинно перевищувати число в рядку 59 - | P33: ='Таб 1'!F24 -> 26
L34: В Таблиці 1 число в графі 3 рядку 62 - | P34: ='Таб 1'!G27 -> 0
L35: не повинно перевищувати число в рядку 59 - | P35: ='Таб 1'!G24 -> 0
L36: В Таблиці 1 число в графі 4 рядку 62 - | P36: ='Таб 1'!H27 -> 0
L37: не повинно перевищувати число в рядку 59 - | P37: ='Таб 1'!H24 -> 0
L38: В Таблиці 1 число в графі 5 рядку 62 - | P38: ='Таб 1'!I27 -> 0
L39: не повинно перевищувати число в рядку 59 - | P39: ='Таб 1'!I24 -> 154
L40: В Таблиці 1 число в графі 6 рядку 62 - | P40: ='Таб 1'!J27 -> 0
L41: не повинно перевищувати число в рядку 59 - | P41: ='Таб 1'!J24 -> 154
L42: В Таблиці 1 число в графі 1 рядку 63 - | P42: ='Таб 1'!E28 -> 3
L43: не повинно перевищувати число в рядку 59 - | P43: ='Таб 1'!E24 -> 23
L44: В Таблиці 1 число в графі 2 рядку 63 - | P44: ='Таб 1'!F28 -> 3
L45: не повинно перевищувати число в рядку 59 - | P45: ='Таб 1'!F24 -> 26
L46: В Таблиці 1 число в графі 3 рядку 63 - | P46: ='Таб 1'!G28 -> 0
L47: не повинно перевищувати число в рядку 59 - | P47: ='Таб 1'!G24 -> 0
L48: В Таблиці 1 число в графі 4 рядку 63 - | P48: ='Таб 1'!H28 -> 0
L49: не повинно перевищувати число в рядку 59 - | P49: ='Таб 1'!H24 -> 0
L50: В Таблиці 1 число в графі 5 рядку 63 - | P50: ='Таб 1'!I28 -> 0
L51: не повинно перевищувати число в рядку 59 - | P51: ='Таб 1'!I24 -> 154
L52: В Таблиці 1 число в графі 6 рядку 63 - | P52: ='Таб 1'!J28 -> 0
L53: не повинно перевищувати число в рядку 59 - | P53: ='Таб 1'!J24 -> 154
L54: В Таблиці 1 число в графі 1 рядку 64 - | P54: ='Таб 1'!E29 -> 0
L55: не повинно перевищувати число в рядку 59 - | P55: ='Таб 1'!E24 -> 23
L56: В Таблиці 1 число в графі 2 рядку 64 - | P56: ='Таб 1'!F29 -> 0
L57: не повинно перевищувати число в рядку 59 - | P57: ='Таб 1'!F24 -> 26
L58: В Таблиці 1 в рядку 62 число у графі 6 - | P58: ='Таб 1'!J27 -> 0
L59: не повинно перевищувати число у графі 5 - | P59: ='Таб 1'!I27 -> 0
L60: В Таблиці 1 в рядку 63 число у графі 6 - | P60: ='Таб 1'!J28 -> 0
L61: не повинно перевищувати число у графі 5 - | P61: ='Таб 1'!I28 -> 0
K62: Таблиця 1.1 | L62: В Таблиці 1.1 в графі 1 сума чисел у рядках 2,4-6 - | P62: ='Таб 1.1'!E7+'Таб 1.1'!E9+'Таб 1.1'!E10+'Таб 1.1'!E11 -> 17
L63: не повинно перевищувати число в рядку 1 - | P63: ='Таб 1.1'!E6 -> 17
L64: В Таблиці 1.1 в графі 2 сума чисел у рядках 2,4-6 - | P64: ='Таб 1.1'!F7+'Таб 1.1'!F9+'Таб 1.1'!F10+'Таб 1.1'!F11 -> 0
L65: не повинно перевищувати число в рядку 1 - | P65: ='Таб 1.1'!F6 -> 0
L66: В Таблиці 1.1 в графі 3 сума чисел у рядках 2,4-6 - | P66: ='Таб 1.1'!G7+'Таб 1.1'!G9+'Таб 1.1'!G10+'Таб 1.1'!G11 -> 0
L67: не повинно перевищувати число в рядку 1 - | P67: ='Таб 1.1'!G6 -> 0
L68: В Таблиці 1.1 в графі 4 сума чисел у рядках 2,4-6 - | P68: ='Таб 1.1'!H7+'Таб 1.1'!H9+'Таб 1.1'!H10+'Таб 1.1'!H11 -> 17
L69: не повинно перевищувати число в рядку 1 - | P69: ='Таб 1.1'!H6 -> 17
L70: В Таблиці 1.1 в графі 5 сума чисел у рядках 2,4-6 - | P70: ='Таб 1.1'!I7+'Таб 1.1'!I9+'Таб 1.1'!I10+'Таб 1.1'!I11 -> 0
L71: не повинно перевищувати число в рядку 1 - | P71: ='Таб 1.1'!I6 -> 0
L72: В Таблиці 1.1 в графі 6 сума чисел у рядках 2,4-6 - | P72: ='Таб 1.1'!J7+'Таб 1.1'!J9+'Таб 1.1'!J10+'Таб 1.1'!J11 -> 0
L73: не повинно перевищувати число в рядку 1 - | P73: ='Таб 1.1'!J6 -> 0
L74: В Таблиці 1.1 в графі 7 сума чисел у рядках 2,4-6 - | P74: ='Таб 1.1'!K7+'Таб 1.1'!K9+'Таб 1.1'!K10+'Таб 1.1'!K11 -> 0
L75: не повинно перевищувати число в рядку 1 - | P75: ='Таб 1.1'!K6 -> 0
L76: В Таблиці 1.1 в графі 8 сума чисел у рядках 2,4-6 - | P76: ='Таб 1.1'!L7+'Таб 1.1'!L9+'Таб 1.1'!L10+'Таб 1.1'!L11 -> 0
L77: не повинно перевищувати число в рядку 1 - | P77: ='Таб 1.1'!L6 -> 0
L78: В Таблиці 1.1 число в графі 1 рядку 3 - | P78: ='Таб 1.1'!E8 -> 0
L79: не повинно перевищувати число в рядку 2 - | P79: ='Таб 1.1'!E7 -> 17
L80: В Таблиці 1.1 число в графі 2 рядку 3 - | P80: ='Таб 1.1'!F8 -> 0
L81: не повинно перевищувати число в рядку 2 - | P81: ='Таб 1.1'!F7 -> 0
L82: В Таблиці 1.1 число в графі 3 рядку 3 - | P82: ='Таб 1.1'!G8 -> 0
L83: не повинно перевищувати число в рядку 2 - | P83: ='Таб 1.1'!G7 -> 0
L84: В Таблиці 1.1 число в графі 4 рядку 3 - | P84: ='Таб 1.1'!H8 -> 0
L85: не повинно перевищувати число в рядку 2 - | P85: ='Таб 1.1'!H7 -> 17
L86: В Таблиці 1.1 число в графі 5 рядку 3 - | P86: ='Таб 1.1'!I8 -> 0
L87: не повинно перевищувати число в рядку 2 - | P87: ='Таб 1.1'!I7 -> 0
L88: В Таблиці 1.1 число в графі 6 рядку 3 - | P88: ='Таб 1.1'!J8 -> 0
L89: не повинно перевищувати число в рядку 2 - | P89: ='Таб 1.1'!J7 -> 0
L90: В Таблиці 1.1 число в графі 7 рядку 3 - | P90: ='Таб 1.1'!K8 -> 0
L91: не повинно перевищувати число в рядку 2 - | P91: ='Таб 1.1'!K7 -> 0
L92: В Таблиці 1.1 число в графі 8 рядку 3 - | P92: ='Таб 1.1'!L8 -> 0
L93: не повинно перевищувати число в рядку 2 - | P93: ='Таб 1.1'!L7 -> 0
L94: В Таблиці 1.1 в графі 1 сума чисел у рядках 8,10-12 - | P94: ='Таб 1.1'!E13+'Таб 1.1'!E15+'Таб 1.1'!E16+'Таб 1.1'!E17 -> 14
L95: не повинно перевищувати число в рядку 7 - | P95: ='Таб 1.1'!E12 -> 14
L96: В Таблиці 1.1 в графі 2 сума чисел у рядках 8,10-12 - | P96: ='Таб 1.1'!F13+'Таб 1.1'!F15+'Таб 1.1'!F16+'Таб 1.1'!F17 -> 0
L97: не повинно перевищувати число в рядку 7 - | P97: ='Таб 1.1'!F12 -> 0
L98: В Таблиці 1.1 в графі 3 сума чисел у рядках 8,10-12 - | P98: ='Таб 1.1'!G13+'Таб 1.1'!G15+'Таб 1.1'!G16+'Таб 1.1'!G17 -> 0
L99: не повинно перевищувати число в рядку 7 - | P99: ='Таб 1.1'!G12 -> 0
L100: В Таблиці 1.1 в графі 4 сума чисел у рядках 8,10-12 - | P100: ='Таб 1.1'!H13+'Таб 1.1'!H15+'Таб 1.1'!H16+'Таб 1.1'!H17 -> 14
L101: не повинно перевищувати число в рядку 7 - | P101: ='Таб 1.1'!H12 -> 14
L102: В Таблиці 1.1 в графі 5 сума чисел у рядках 8,10-12 - | P102: ='Таб 1.1'!I13+'Таб 1.1'!I15+'Таб 1.1'!I16+'Таб 1.1'!I17 -> 0
L103: не повинно перевищувати число в рядку 7 - | P103: ='Таб 1.1'!I12 -> 0
L104: В Таблиці 1.1 в графі 6 сума чисел у рядках 8,10-12 - | P104: ='Таб 1.1'!J13+'Таб 1.1'!J15+'Таб 1.1'!J16+'Таб 1.1'!J17 -> 0
L105: не повинно перевищувати число в рядку 7 - | P105: ='Таб 1.1'!J12 -> 0
L106: В Таблиці 1.1 в графі 7 сума чисел у рядках 8,10-12 - | P106: ='Таб 1.1'!K13+'Таб 1.1'!K15+'Таб 1.1'!K16+'Таб 1.1'!K17 -> 0
L107: не повинно перевищувати число в рядку 7 - | P107: ='Таб 1.1'!K12 -> 0
L108: В Таблиці 1.1 в графі 8 сума чисел у рядках 8,10-12 - | P108: ='Таб 1.1'!L13+'Таб 1.1'!L15+'Таб 1.1'!L16+'Таб 1.1'!L17 -> 0
L109: не повинно перевищувати число в рядку 7 - | P109: ='Таб 1.1'!L12 -> 0
L110: В Таблиці 1.1 число в графі 1 рядку 9 - | P110: ='Таб 1.1'!E14 -> 0
L111: не повинно перевищувати число в рядку 8 - | P111: ='Таб 1.1'!E13 -> 14
L112: В Таблиці 1.1 число в графі 2 рядку 9 - | P112: ='Таб 1.1'!F14 -> 0
L113: не повинно перевищувати число в рядку 8 - | P113: ='Таб 1.1'!F13 -> 0
L114: В Таблиці 1.1 число в графі 3 рядку 9 - | P114: ='Таб 1.1'!G14 -> 0
L115: не повинно перевищувати число в рядку 8 - | P115: ='Таб 1.1'!G13 -> 0
L116: В Таблиці 1.1 число в графі 4 рядку 9 - | P116: ='Таб 1.1'!H14 -> 0
L117: не повинно перевищувати число в рядку 8 - | P117: ='Таб 1.1'!H13 -> 14
L118: В Таблиці 1.1 число в графі 5 рядку 9 - | P118: ='Таб 1.1'!I14 -> 0
L119: не повинно перевищувати число в рядку 8 - | P119: ='Таб 1.1'!I13 -> 0
L120: В Таблиці 1.1 число в графі 6 рядку 9 - | P120: ='Таб 1.1'!J14 -> 0
L121: не повинно перевищувати число в рядку 8 - | P121: ='Таб 1.1'!J13 -> 0
L122: В Таблиці 1.1 число в графі 7 рядку 9 - | P122: ='Таб 1.1'!K14 -> 0
L123: не повинно перевищувати число в рядку 8 - | P123: ='Таб 1.1'!K13 -> 0
L124: В Таблиці 1.1 число в графі 8 рядку 9 - | P124: ='Таб 1.1'!L14 -> 0
L125: не повинно перевищувати число в рядку 8 - | P125: ='Таб 1.1'!L13 -> 0
L126: В Таблиці 1.1 в графі 1 сума чисел у рядках 14,16-18 - | P126: ='Таб 1.1'!E19+'Таб 1.1'!E21+'Таб 1.1'!E22+'Таб 1.1'!E23 -> 0
L127: не повинно перевищувати число в рядку 13 - | P127: ='Таб 1.1'!E18 -> 0
L128: В Таблиці 1.1 в графі 2 сума чисел у рядках 14,16-18 - | P128: ='Таб 1.1'!F19+'Таб 1.1'!F21+'Таб 1.1'!F22+'Таб 1.1'!F23 -> 0
L129: не повинно перевищувати число в рядку 13 - | P129: ='Таб 1.1'!F18 -> 0
L130: В Таблиці 1.1 в графі 3 сума чисел у рядках 14,16-18 - | P130: ='Таб 1.1'!G19+'Таб 1.1'!G21+'Таб 1.1'!G22+'Таб 1.1'!G23 -> 0
L131: не повинно перевищувати число в рядку 13 - | P131: ='Таб 1.1'!G18 -> 0
L132: В Таблиці 1.1 в графі 4 сума чисел у рядках 14,16-18 - | P132: ='Таб 1.1'!H19+'Таб 1.1'!H21+'Таб 1.1'!H22+'Таб 1.1'!H23 -> 0
L133: не повинно перевищувати число в рядку 13 - | P133: ='Таб 1.1'!H18 -> 0
L134: В Таблиці 1.1 в графі 5 сума чисел у рядках 14,16-18 - | P134: ='Таб 1.1'!I19+'Таб 1.1'!I21+'Таб 1.1'!I22+'Таб 1.1'!I23 -> 0
L135: не повинно перевищувати число в рядку 13 - | P135: ='Таб 1.1'!I18 -> 0
L136: В Таблиці 1.1 в графі 6 сума чисел у рядках 14,16-18 - | P136: ='Таб 1.1'!J19+'Таб 1.1'!J21+'Таб 1.1'!J22+'Таб 1.1'!J23 -> 0
L137: не повинно перевищувати число в рядку 13 - | P137: ='Таб 1.1'!J18 -> 0
L138: В Таблиці 1.1 в графі 7 сума чисел у рядках 14,16-18 - | P138: ='Таб 1.1'!K19+'Таб 1.1'!K21+'Таб 1.1'!K22+'Таб 1.1'!K23 -> 0
L139: не повинно перевищувати число в рядку 13 - | P139: ='Таб 1.1'!K18 -> 0
L140: В Таблиці 1.1 в графі 8 сума чисел у рядках 14,16-18 - | P140: ='Таб 1.1'!L19+'Таб 1.1'!L21+'Таб 1.1'!L22+'Таб 1.1'!L23 -> 0
L141: не повинно перевищувати число в рядку 13 - | P141: ='Таб 1.1'!L18 -> 0
L142: В Таблиці 1.1 число в графі 1 рядку 15 - | P142: ='Таб 1.1'!E20 -> 0
L143: не повинно перевищувати число в рядку 14 - | P143: ='Таб 1.1'!E19 -> 0
L144: В Таблиці 1.1 число в графі 2 рядку 15 - | P144: ='Таб 1.1'!F20 -> 0
L145: не повинно перевищувати число в рядку 14 - | P145: ='Таб 1.1'!F19 -> 0
L146: В Таблиці 1.1 число в графі 3 рядку 15 - | P146: ='Таб 1.1'!G20 -> 0
L147: не повинно перевищувати число в рядку 14 - | P147: ='Таб 1.1'!G19 -> 0
L148: В Таблиці 1.1 число в графі 4 рядку 15 - | P148: ='Таб 1.1'!H20 -> 0
L149: не повинно перевищувати число в рядку 14 - | P149: ='Таб 1.1'!H19 -> 0
L150: В Таблиці 1.1 число в графі 5 рядку 15 - | P150: ='Таб 1.1'!I20 -> 0
L151: не повинно перевищувати число в рядку 14 - | P151: ='Таб 1.1'!I19 -> 0
L152: В Таблиці 1.1 число в графі 6 рядку 15 - | P152: ='Таб 1.1'!J20 -> 0
L153: не повинно перевищувати число в рядку 14 - | P153: ='Таб 1.1'!J19 -> 0
L154: В Таблиці 1.1 число в графі 7 рядку 15 - | P154: ='Таб 1.1'!K20 -> 0
L155: не повинно перевищувати число в рядку 14 - | P155: ='Таб 1.1'!K19 -> 0
L156: В Таблиці 1.1 число в графі 8 рядку 15 - | P156: ='Таб 1.1'!L20 -> 0
L157: не повинно перевищувати число в рядку 14 - | P157: ='Таб 1.1'!L19 -> 0
L158: В Таблиці 1.1 в графі 1 сума чисел у рядках 20,22-24 - | P158: ='Таб 1.1'!E25+'Таб 1.1'!E27+'Таб 1.1'!E28+'Таб 1.1'!E29 -> 0
L159: не повинно перевищувати число в рядку 19 - | P159: ='Таб 1.1'!E24 -> 0
L160: В Таблиці 1.1 в графі 2 сума чисел у рядках 20,22-24 - | P160: ='Таб 1.1'!F25+'Таб 1.1'!F27+'Таб 1.1'!F28+'Таб 1.1'!F29 -> 0
L161: не повинно перевищувати число в рядку 19 - | P161: ='Таб 1.1'!F24 -> 0
L162: В Таблиці 1.1 в графі 3 сума чисел у рядках 20,22-24 - | P162: ='Таб 1.1'!G25+'Таб 1.1'!G27+'Таб 1.1'!G28+'Таб 1.1'!G29 -> 0
L163: не повинно перевищувати число в рядку 19 - | P163: ='Таб 1.1'!G24 -> 0
L164: В Таблиці 1.1 в графі 4 сума чисел у рядках 20,22-24 - | P164: ='Таб 1.1'!H25+'Таб 1.1'!H27+'Таб 1.1'!H28+'Таб 1.1'!H29 -> 0
L165: не повинно перевищувати число в рядку 19 - | P165: ='Таб 1.1'!H24 -> 0
L166: В Таблиці 1.1 в графі 5 сума чисел у рядках 20,22-24 - | P166: ='Таб 1.1'!I25+'Таб 1.1'!I27+'Таб 1.1'!I28+'Таб 1.1'!I29 -> 0
L167: не повинно перевищувати число в рядку 19 - | P167: ='Таб 1.1'!I24 -> 0
L168: В Таблиці 1.1 в графі 6 сума чисел у рядках 20,22-24 - | P168: ='Таб 1.1'!J25+'Таб 1.1'!J27+'Таб 1.1'!J28+'Таб 1.1'!J29 -> 0
L169: не повинно перевищувати число в рядку 19 - | P169: ='Таб 1.1'!J24 -> 0
L170: В Таблиці 1.1 в графі 7 сума чисел у рядках 20,22-24 - | P170: ='Таб 1.1'!K25+'Таб 1.1'!K27+'Таб 1.1'!K28+'Таб 1.1'!K29 -> 0
L171: не повинно перевищувати число в рядку 19 - | P171: ='Таб 1.1'!K24 -> 0
L172: В Таблиці 1.1 в графі 8 сума чисел у рядках 20,22-24 - | P172: ='Таб 1.1'!L25+'Таб 1.1'!L27+'Таб 1.1'!L28+'Таб 1.1'!L29 -> 0
L173: не повинно перевищувати число в рядку 19 - | P173: ='Таб 1.1'!L24 -> 0
L174: В Таблиці 1.1 число в графі 1 рядку 21 - | P174: ='Таб 1.1'!E26 -> 0
L175: не повинно перевищувати число в рядку 20 - | P175: ='Таб 1.1'!E25 -> 0
L176: В Таблиці 1.1 число в графі 2 рядку 21 - | P176: ='Таб 1.1'!F26 -> 0
L177: не повинно перевищувати число в рядку 20 - | P177: ='Таб 1.1'!F25 -> 0
L178: В Таблиці 1.1 число в графі 3 рядку 21 - | P178: ='Таб 1.1'!G26 -> 0
L179: не повинно перевищувати число в рядку 20 - | P179: ='Таб 1.1'!G25 -> 0
L180: В Таблиці 1.1 число в графі 4 рядку 21 - | P180: ='Таб 1.1'!H26 -> 0
L181: не повинно перевищувати число в рядку 20 - | P181: ='Таб 1.1'!H25 -> 0
L182: В Таблиці 1.1 число в графі 5 рядку 21 - | P182: ='Таб 1.1'!I26 -> 0
L183: не повинно перевищувати число в рядку 20 - | P183: ='Таб 1.1'!I25 -> 0
L184: В Таблиці 1.1 число в графі 6 рядку 21 - | P184: ='Таб 1.1'!J26 -> 0
L185: не повинно перевищувати число в рядку 20 - | P185: ='Таб 1.1'!J25 -> 0
L186: В Таблиці 1.1 число в графі 7 рядку 21 - | P186: ='Таб 1.1'!K26 -> 0
L187: не повинно перевищувати число в рядку 20 - | P187: ='Таб 1.1'!K25 -> 0
L188: В Таблиці 1.1 число в графі 8 рядку 21 - | P188: ='Таб 1.1'!L26 -> 0
L189: не повинно перевищувати число в рядку 20 - | P189: ='Таб 1.1'!L25 -> 0
L190: В Таблиці 1 в графі 1 сума чисел у рядках 1,12,23,48,58 - | P190: ='Таблиця 1'!E6+'Таблиця 1'!E17+'Таблиця 1'!E28+'Таб 1'!E13+'Таб 1'!E23 -> 23
L191: повинна дорівнювати числу в рядку 59 - | P191: ='Таб 1'!E24 -> 23
L192: В Таблиці 1 в графі 2 сума чисел у рядках 1,12,23,48,58 - | P192: ='Таблиця 1'!F6+'Таблиця 1'!F17+'Таблиця 1'!F28+'Таб 1'!F13+'Таб 1'!F23 -> 26
L193: повинна дорівнювати числу в рядку 59 - | P193: ='Таб 1'!F24 -> 26
L194: В Таблиці 1 в графі 3 сума чисел у рядках 1,12,23,48,58 - | P194: ='Таблиця 1'!G6+'Таблиця 1'!G17+'Таблиця 1'!G28+'Таб 1'!G13+'Таб 1'!G23 -> 0
L195: повинна дорівнювати числу в рядку 59 - | P195: ='Таб 1'!G24 -> 0
L196: В Таблиці 1 в графі 4 сума чисел у рядках 1,12,23,48,58 - | P196: ='Таблиця 1'!H6+'Таблиця 1'!H17+'Таблиця 1'!H28+'Таб 1'!H13+'Таб 1'!H23 -> 0
L197: повинна дорівнювати числу в рядку 59 - | P197: ='Таб 1'!H24 -> 0
L198: В Таблиці 1 в графі 5 сума чисел у рядках 1,12,23,48,58 - | P198: ='Таблиця 1'!I6+'Таблиця 1'!I17+'Таблиця 1'!I28+'Таб 1'!I13+'Таб 1'!I23 -> 154
L199: повинна дорівнювати числу в рядку 59 - | P199: ='Таб 1'!I24 -> 154
L200: В Таблиці 1 в графі 6 сума чисел у рядках 1,12,23,48,58 - | P200: ='Таблиця 1'!J6+'Таблиця 1'!J17+'Таблиця 1'!J28+'Таб 1'!J13+'Таб 1'!J23 -> 154
... 459 more rows

Sheet Довідки
A1: ДОВІДКА
A2: про слідчу роботу
A3: ='Таблиця 1'!T1 -> Прокуратура Чернігівської області
A4: за 3 місяці 2015 року
E6: Рядок | F6: 2014 | G6: 2015 | H6: Дин. %
A7: а | E7: б | F7: 1 | G7: 2 | H7: 3
A8: Знаходилось кримінальних проваджень | E8: 1 | F8: 116 | G8: 156 | H8: =IF(F8=0,0,IF(G8=0,"-100,0",IF(G8*100/F8<200,ROUND(G8*100/F8-100,1),ROUND(G8/F8,1)&" р"))) -> 34.5
A9: Закінчено кримінальних проваджень (з повторно закінченими) | E9: 2 | F9: 73 | G9: 69 | H9: =IF(F9=0,0,IF(G9=0,"-100,0",IF(G9*100/F9<200,ROUND(G9*100/F9-100,1),ROUND(G9/F9,1)&" р"))) -> -5.5
A10: з них: | B10: закінчено кримінальних проваджень у строки понад 2 місяці | E10: 3 | G10: 1 | H10: =IF(F10=0,0,IF(G10=0,"-100,0",IF(G10*100/F10<200,ROUND(G10*100/F10-100,1),ROUND(G10/F10,1)&" р"))) -> 0
B11: питома вага закінчених кримінальних проваджень у строки понад 2 місяці | E11: 4 | F11: =IF($F$9=0,0,F10*100/$F$9) -> 0 | G11: =IF($G$9=0,0,G10*100/$G$9) -> 1.449275362
B12: направлено до суду проваджень з обвинувальним актом | E12: 5 | F12: 8 | G12: 7 | H12: =IF(F12=0,0,IF(G12=0,"-100,0",IF(G12*100/F12<200,ROUND(G12*100/F12-100,1),ROUND(G12/F12,1)&" р"))) -> -12.5
B13: питома вага направлених до суду проваджень до числа закінчених | E13: 6 | F13: =IF($F$9=0,0,F12*100/$F$9) -> 10.95890411 | G13: =IF($G$9=0,0,G12*100/$G$9) -> 10.14492754
B14: у т.ч.: | C14: з угодою про примирення | E14: 7 | F14: 1 | H14: =IF(F14=0,0,IF(G14=0,"-100,0",IF(G14*100/F14<200,ROUND(G14*100/F14-100,1),ROUND(G14/F14,1)&" р"))) -> -100,0
C15: з угодою про визнання винуватості | E15: 8 | F15: 4 | H15: =IF(F15=0,0,IF(G15=0,"-100,0",IF(G15*100/F15<200,ROUND(G15*100/F15-100,1),ROUND(G15/F15,1)&" р"))) -> -100,0
B16: направлено до суду клопотань про звільнення підозрюваного від кримінальної відповідальності | E16: 9 | F16: 1 | H16: =IF(F16=0,0,IF(G16=0,"-100,0",IF(G16*100/F16<200,ROUND(G16*100/F16-100,1),ROUND(G16/F16,1)&" р"))) -> -100,0
B17: закрито кримінальних проваджень із числа закінчених | E17: 10 | F17: 63 | G17: 62 | H17: =IF(F17=0,0,IF(G17=0,"-100,0",IF(G17*100/F17<200,ROUND(G17*100/F17-100,1),ROUND(G17/F17,1)&" р"))) -> -1.6
B18: з них: | C18: закрито прокурором | E18: 11 | F18: 1 | H18: =IF(F18=0,0,IF(G18=0,"-100,0",IF(G18*100/F18<200,ROUND(G18*100/F18-100,1),ROUND(G18/F18,1)&" р"))) -> -100,0
B19: питома вага | E19: 12 | F19: =IF(F17=0,0,F18*100/F17) -> 1.587301587 | G19: =IF(G17=0,0,G18*100/G17) -> 0
A20: Закінчено кримінальних проваджень (без повторно закінчених) | E20: 13 | F20: 62 | G20: 58 | H20: =IF(F20=0,0,IF(G20=0,"-100,0",IF(G20*100/F20<200,ROUND(G20*100/F20-100,1),ROUND(G20/F20,1)&" р"))) -> -6.5
A21: з них: | B21: направлено до суду кримінальних проваджень з обвинувальним актом | E21: 14 | F21: 8 | G21: 6 | H21: =IF(F21=0,0,IF(G21=0,"-100,0",IF(G21*100/F21<200,ROUND(G21*100/F21-100,1),ROUND(G21/F21,1)&" р"))) -> -25
B22: питома вага до числа закінчених проваджень (без повторних) | E22: 15 | F22: =IF($F$20=0,0,F21*100/$F$20) -> 12.90322581 | G22: =IF($G$20=0,0,G21*100/$G$20) -> 10.34482759
B23: закрито кримінальних проваджень (без повторних) | E23: 16 | F23: 54 | G23: 52 | H23: =IF(F23=0,0,IF(G23=0,"-100,0",IF(G23*100/F23<200,ROUND(G23*100/F23-100,1),ROUND(G23/F23,1)&" р"))) -> -3.7
B24: питома вага до числа закінчених проваджень (без повторних) | E24: 17 | F24: =IF($F$20=0,0,F23*100/$F$20) -> 87.09677419 | G24: =IF($G$20=0,0,G23*100/$G$20) -> 89.65517241
B25: закрито кримінальних проваджень за п.п. 1-3 ч. 1 ст.284 КПК | E25: 18 | F25: 54 | G25: 52 | H25: =IF(F25=0,0,IF(G25=0,"-100,0",IF(G25*100/F25<200,ROUND(G25*100/F25-100,1),ROUND(G25/F25,1)&" р"))) -> -3.7
B26: питома вага закритих проваджень до закінчених | E26: 19 | F26: =IF($F$20=0,0,F25*100/$F$20) -> 87.09677419 | G26: =IF($G$20=0,0,G25*100/$G$20) -> 89.65517241
A27: Затримано осіб у порядку, передбаченому ст.ст. 207, 208 КПК України | E27: 20 | F27: 4 | G27: 1 | H27: =IF(F27=0,0,IF(G27=0,"-100,0",IF(G27*100/F27<200,ROUND(G27*100/F27-100,1),ROUND(G27/F27,1)&" р"))) -> -75
A28: Усього звільнено осіб | E28: 21 | F28: 4 | G28: 1 | H28: =IF(F28=0,0,IF(G28=0,"-100,0",IF(G28*100/F28<200,ROUND(G28*100/F28-100,1),ROUND(G28/F28,1)&" р"))) -> -75
A29: Питома вага звільнених осіб до числа затриманих | E29: 22 | F29: =IF(F27=0,0,F28*100/F27) -> 100 | G29: =IF(G27=0,0,G28*100/G27) -> 100
A30: Звільнено осіб за непідтвердженням підозри у вчиненні злочину | E30: 23 | H30: =IF(F30=0,0,IF(G30=0,"-100,0",IF(G30*100/F30<200,ROUND(G30*100/F30-100,1),ROUND(G30/F30,1)&" р"))) -> 0
A31: Кількість підозрюваних осіб, стосовно яких кримінальне провадження закрито прокурором на підставі п.п. 1-3 ч.1 ст. 284 КПК України | E31: 24 | H31: 0
A32: з них: | B32: трималися під вартою | E32: 25 | H32: 0
B33: перебували під домашнім арештом | E33: 26 | H33: 0
A34: Кількість обвинувачених та підозрюваних, стосовно яких провадження закрито за реабілітуючими підставами (за к/справами, розслідуваними до 20.11.2012) | E34: 27 | H34: =IF(F34=0,0,IF(G34=0,"-100,0",IF(G34*100/F34<200,ROUND(G34*100/F34-100,1),ROUND(G34/F34,1)&" р"))) -> 0
A35: з них: | B35: трималися під вартою | E35: 28 | H35: =IF(F35=0,0,IF(G35=0,"-100,0",IF(G35*100/F35<200,ROUND(G35*100/F35-100,1),ROUND(G35/F35,1)&" р"))) -> 0
A36: Кількість виправданих осіб судами | E36: 29 | F36: 1 | G36: 1 | H36: 0
A37: з них: | B37: трималися під вартою | E37: 30 | F37: 1 | H37: -100,0
B38: перебували під домашнім арештом | E38: 31 | H38: 0
A39: Кількість виправданих і осіб, стосовно яких справи закриті судом за відсутністю події або складу злочину і за недоведеністю обвинувачення (за кримінальними справами, направленими до суду до 20.11.2012) | E39: 32 | H39: 0
A40: з них: | B40: трималися під вартою | E40: 33 | H40: 0
A41: Кількість осіб, стосовно яких провадження закриті судом у зв’язку з відмовою прокурора від підтримання державного обвинувачення | E41: 34 | H41: 0
A42: з них: | B42: трималися під вартою | E42: 35 | H42: =IF(F42=0,0,IF(G42=0,"-100,0",IF(G42*100/F42<200,ROUND(G42*100/F42-100,1),ROUND(G42/F42,1)&" р"))) -> 0
B43: перебували під домашнім арештом | E43: 36 | H43: =IF(F43=0,0,IF(G43=0,"-100,0",IF(G43*100/F43<200,ROUND(G43*100/F43-100,1),ROUND(G43/F43,1)&" р"))) -> 0
A44: Кількість осіб, стосовно яких кримінальні справи закриті судом у зв’язку з відмовою прокурора від підтримання державного обвинувачення (за кримінальними справами, направленими до суду до 20.11.2012) | E44: 37 | H44: =IF(F44=0,0,IF(G44=0,"-100,0",IF(G44*100/F44<200,ROUND(G44*100/F44-100,1),ROUND(G44/F44,1)&" р"))) -> 0
A45: з них: | B45: трималися під вартою | E45: 38 | H45: =IF(F45=0,0,IF(G45=0,"-100,0",IF(G45*100/F45<200,ROUND(G45*100/F45-100,1),ROUND(G45/F45,1)&" р"))) -> 0
A46: Усього надійшло кримінальних проваджень із судів | E46: 39 | F46: =SUM(F48:F51) -> 0 | G46: =SUM(G48:G51) -> 0 | H46: 0
A47: Питома вага | E47: 40 | F47: =IF(F21=0,0,F46*100/F21) -> 0 | G47: =IF(G21=0,0,G46*100/G21) -> 0
A48: з них: | B48: з обвинувальним актом (п.3 ч. 3 ст. 314 КПК) | E48: 41 | H48: 0
B49: з клопотаннями про застосування примусових заходів медичного характеру (п.3 ч. 3 ст. 314 КПК) | E49: 42 | H49: 0
B50: з клопотаннями про звільнення особи від кримінальної відповідальності (п. 4 ст. 288 КПК) | E50: 43 | H50: 0
B51: на підставі п.2 ч.2 ст. 407 КПК | E51: 44 | H51: 0
A52: Залишок незакінчених кримінальних проваджень | E52: 45 | F52: 23 | G52: 67 | H52: =IF(F52=0,0,IF(G52=0,"-100,0",IF(G52*100/F52<200,ROUND(G52*100/F52-100,1),ROUND(G52/F52,1)&" р"))) -> 2,9 р
A53: Установлено збитків за закінченими кримінальними провадженнями (у тис. грн.) | E53: 46 | G53: 3 | H53: =IF(F53=0,0,IF(G53=0,"-100,0",IF(G53*100/F53<200,ROUND(G53*100/F53-100,1),ROUND(G53/F53,1)&" р"))) -> 0
A54: Відшкодовано збитків за закінченими кримінальними провадженнями (у тис. грн.) | E54: 47 | F54: 0 | G54: 3 | H54: =IF(F54=0,0,IF(G54=0,"-100,0",IF(G54*100/F54<200,ROUND(G54*100/F54-100,1),ROUND(G54/F54,1)&" р"))) -> 0
A55: Питома вага відшкодування (%) | E55: 48 | F55: =IF(F53=0,0,F54*100/F53) -> 0 | G55: =IF(G53=0,0,G54*100/G53) -> 100
A56: Відшкодовано збитків заподіяних інтересам держави та територіальних громад (у тис. грн.) | E56: 49 | F56: 0 | G56: 0 | H56: =IF(F56=0,0,IF(G56=0,"-100,0",IF(G56*100/F56<200,ROUND(G56*100/F56-100,1),ROUND(G56/F56,1)&" р"))) -> 0
A57: Відшкодовано збитків про земельні правовідносини (у тис. грн.) | E57: 50 | F57: 0 | G57: 0 | H57: =IF(F57=0,0,IF(G57=0,"-100,0",IF(G57*100/F57<200,ROUND(G57*100/F57-100,1),ROUND(G57/F57,1)&" р"))) -> 0
A58: Крим. правопорушення, вчинені особами посади яких згідно зі ч.1 ст. 9 Закону України «Про державну службу» та посади яких відповідно до цього Закону віднесено до 1-2 категорії (крім працівників правоохоронних органів) | D58: направлено до суду | E58: 51 | H58: =IF(F58=0,0,IF(G58=0,"-100,0",IF(G58*100/F58<200,ROUND(G58*100/F58-100,1),ROUND(G58/F58,1)&" р"))) -> 0
D59: закрито за п.п. 1-3 ч. 1 ст.284 КПК | E59: 52 | H59: 0
A60: з них: | B60: У сфері службової діяльності | D60: направлено до суду | E60: 53 | H60: 0
D61: закрито за п.п. 1-3 ч. 1 ст.284 КПК | E61: 54 | H61: 0
B62: у т.ч.: | C62: зловживання владою або службовим становищем (ст. 364) | D62: направлено до суду | E62: 55 | H62: =IF(F62=0,0,IF(G62=0,"-100,0",IF(G62*100/F62<200,ROUND(G62*100/F62-100,1),ROUND(G62/F62,1)&" р"))) -> 0
D63: закрито за п.п. 1-3 ч. 1 ст.284 КПК | E63: 56 | H63: 0
C64: службова недбалість (ст. 367) | D64: направлено до суду | E64: 57 | H64: 0
D65: закрито за п.п. 1-3 ч. 1 ст.284 КПК | E65: 58 | H65: 0
C66: злочини щодо хабарництва (ст.ст. 368-370) | D66: направлено до суду | E66: 59 | H66: 0
D67: закрито за п.п. 1-3 ч. 1 ст.284 КПК | E67: 60 | H67: 0
A68: Крим. правопорушення, вчинені особами посади яких згідно зі ст. 25 Закону України «Про державну службу» віднесено до 3 категорії посад (крім працівників правоох. органів та суддів) | D68: направлено до суду | E68: 61 | H68: =IF(F68=0,0,IF(G68=0,"-100,0",IF(G68*100/F68<200,ROUND(G68*100/F68-100,1),ROUND(G68/F68,1)&" р"))) -> 0
D69: закрито за п.п. 1-3 ч. 1 ст.284 КПК | E69: 62 | F69: 1 | H69: -100,0
A70: з них: | B70: У сфері службової діяльності | D70: направлено до суду | E70: 63 | H70: 0
D71: закрито за п.п. 1-3 ч. 1 ст.284 КПК | E71: 64 | F71: 1 | H71: -100,0
B72: у т.ч.: | C72: зловживання владою або службовим становищем (ст. 364) | D72: направлено до суду | E72: 65 | H72: 0
D73: закрито за п.п. 1-3 ч. 1 ст.284 КПК | E73: 66 | H73: 0
C74: службова недбалість (ст. 367) | D74: направлено до суду | E74: 67 | H74: =IF(F74=0,0,IF(G74=0,"-100,0",IF(G74*100/F74<200,ROUND(G74*100/F74-100,1),ROUND(G74/F74,1)&" р"))) -> 0
D75: закрито за п.п. 1-3 ч. 1 ст.284 КПК | E75: 68 | H75: 0
C76: злочини щодо хабарництва (ст.ст. 368-370) | D76: направлено до суду | E76: 69 | H76: 0
D77: закрито за п.п. 1-3 ч. 1 ст.284 КПК | E77: 70 | H77: 0
A78: Кримінальні правопорушення, вчинені працівниками правоохоронних органів | D78: направлено до суду | E78: 71 | F78: 5 | G78: 4 | H78: -20
D79: закрито за п.п. 1-3 ч. 1 ст.284 КПК | E79: 72 | F79: 53 | G79: 52 | H79: -1.9
A80: з них: | B80: У сфері службової діяльності | D80: направлено до суду | E80: 73 | F80: 4 | G80: 3 | H80: -25
D81: закрито за п.п. 1-3 ч. 1 ст.284 КПК | E81: 74 | F81: 46 | G81: 46 | H81: 0
B82: у т.ч.: | C82: органів внутрішніх справ | D82: направлено до суду | E82: 75 | F82: 4 | G82: 2 | H82: -50
D83: закрито за п.п. 1-3 ч. 1 ст.284 КПК | E83: 76 | F83: 42 | G83: 46 | H83: 9.5
C84: у т.ч. Національної гвардії | D84: направлено до суду | E84: 77 | H84: =IF(F84=0,0,IF(G84=0,"-100,0",IF(G84*100/F84<200,ROUND(G84*100/F84-100,1),ROUND(G84/F84,1)&" р"))) -> 0
D85: закрито за п.п. 1-3 ч. 1 ст.284 КПК | E85: 78 | H85: 0
C86: органів прокуратури | D86: направлено до суду | E86: 79 | H86: 0
D87: закрито за п.п. 1-3 ч. 1 ст.284 КПК | E87: 80 | G87: 1 | H87: 0
C88: Служби безпеки України | D88: направлено до суду | E88: 81 | H88: 0
D89: закрито за п.п. 1-3 ч. 1 ст.284 КПК | E89: 82 | G89: 1 | H89: 0
C90: Державної податкової служби | D90: направлено до суду | E90: 83 | F90: 1 | H90: -100,0
D91: закрито за п.п. 1-3 ч. 1 ст.284 КПК | E91: 84 | F91: 7 | G91: 1 | H91: -85.7
C92: митної служби | D92: направлено до суду | E92: 85 | H92: 0
D93: закрито за п.п. 1-3 ч. 1 ст.284 КПК | E93: 86 | H93: 0
C94: працівниками пенітенціарної системи | D94: направлено до суду | E94: 87 | G94: 1 | H94: 0
D95: закрито за п.п. 1-3 ч. 1 ст.284 КПК | E95: 88 | F95: 2 | G95: 2 | H95: 0
C96: прикордонниками | D96: направлено до суду | E96: 89 | H96: =IF(F96=0,0,IF(G96=0,"-100,0",IF(G96*100/F96<200,ROUND(G96*100/F96-100,1),ROUND(G96/F96,1)&" р"))) -> 0
D97: закрито за п.п. 1-3 ч. 1 ст.284 КПК | E97: 90 | F97: 1 | H97: =IF(F97=0,0,IF(G97=0,"-100,0",IF(G97*100/F97<200,ROUND(G97*100/F97-100,1),ROUND(G97/F97,1)&" р"))) -> -100,0
A98: Кримінальні правопорушення, вчинені суддями | D98: направлено до суду | E98: 91 | H98: =IF(F98=0,0,IF(G98=0,"-100,0",IF(G98*100/F98<200,ROUND(G98*100/F98-100,1),ROUND(G98/F98,1)&" р"))) -> 0
D99: закрито за п.п. 1-3 ч. 1 ст.284 КПК | E99: 92 | H99: 0
A100: з них: | B100: У сфері здійснення правосуддя | D100: направлено до суду | E100: 93 | H100: 0
D101: закрито за п.п. 1-3 ч. 1 ст.284 КПК | E101: 94 | H101: 0
B102: у т.ч.: | C102: постановлення завідомо неправосудного вироку, рішення або ухвали (ст.375) | D102: направлено до суду | E102: 95 | H102: 0
D103: закрито за п.п. 1-3 ч. 1 ст.284 КПК | E103: 96 | H103: 0
C104: злочини щодо хабарництва (ст.ст. 368-370) | D104: направлено до суду | E104: 97 | H104: 0
D105: закрито за п.п. 1-3 ч. 1 ст.284 КПК | E105: 98 | H105: 0
C106: інші крим. правопор., вчинені у сфері служб. діяльності щодо здійснення правосуддя | D106: направлено до суду | E106: 99 | H106: 0
D107: закрито за п.п. 1-3 ч. 1 ст.284 КПК | E107: 100 | H107: 0
A108: Направлено до суду кримінальних проваджень про корупційні правопорушення | E108: 101 | F108: 1 | G108: 3 | H108: =IF(F108=0,0,IF(G108=0,"-100,0",IF(G108*100/F108<200,ROUND(G108*100/F108-100,1),ROUND(G108/F108,1)&" р"))) -> 3 р
A109: Питома вага до всіх направлених до суду з обвинувальним висновком | E109: 102 | F109: =IF($F$21=0,0,F108*100/$F$21) -> 12.5 | G109: =IF($G$21=0,0,G108*100/$G$21) -> 50
A110: Притягнуто до відповідальності осіб (про корупційні правопорушення) | E110: 103 | F110: 1 | G110: 4 | H110: =IF(F110=0,0,IF(G110=0,"-100,0",IF(G110*100/F110<200,ROUND(G110*100/F110-100,1),ROUND(G110/F110,1)&" р"))) -> 4 р
A111: Направлено до суду кримінальних проваджень про правопорушення, вчинені ОГ та ЗО | E111: 104 | H111: =IF(F111=0,0,IF(G111=0,"-100,0",IF(G111*100/F111<200,ROUND(G111*100/F111-100,1),ROUND(G111/F111,1)&" р"))) -> 0
A112: Направлено до суду кримінальних проваджень про правопорушення, вчинені у сфері земельних правовідносин | E112: 105 | H112: =IF(F112=0,0,IF(G112=0,"-100,0",IF(G112*100/F112<200,ROUND(G112*100/F112-100,1),ROUND(G112/F112,1)&" р"))) -> 0
A113: Направлено до суду кримінальних проваджень про правопорушення, вчинені у бюджетній системі | E113: 106 | H113: =IF(F113=0,0,IF(G113=0,"-100,0",IF(G113*100/F113<200,ROUND(G113*100/F113-100,1),ROUND(G113/F113,1)&" р"))) -> 0
